bitfinex/quotes_SOLUSD_20240624
["timestamp","ask_amount","ask_price","bid_price","bid_amount"]
[1719237144460,0.77782102,129.09,128.99,19.3811]
[1719237144652,0.77782102,129.09,128.97,138.7661]
[1719237144653,7.7501,129.03,128.97,7.7535]
[1719237144869,19.3684,129.08,128.98,52.7526]
[1719237144870,0.77782102,129.07,128.98,52.7526]
[1719237145046,7.7501,129.04,128.98,52.7526]
[1719237145255,7.7495,129.04,128.98,52.7526]
[1719237145456,0.77782102,129.09,128.99,100.0]
[1719237145650,0.77782102,129.09,129.0,45.0]
[1719237145846,20.14442102,129.09,129.0,7.7518]
[1719237146050,7.7495,129.04,128.98,164.3815]
[1719237146251,7.7491,129.05,128.99,107.752]
[1719237146451,0.77782102,129.08,129.0,64.3796]
[1719237146651,20.0,129.08,129.0,64.3796]
[1719237146865,7.7478,129.07,129.01,7.7513]
[1719237147369,7.7467,129.09,129.03,7.75]
[1719237147548,64.52607649,129.13,129.03,100.0]
[1719237147549,19.3611,129.13,129.03,100.0]
[1719237147750,7.7441,129.13,129.07,7.7476]
[1719237147956,0.8691485,129.15,129.07,7.7476]
[1719237147957,7.7436,129.14,129.07,7.7476]
[1719237148156,1.64696952,129.15,129.08,7.747]
[1719237148366,7.7445,129.13,129.07,7.7477]
[1719237148574,7.7445,129.13,129.06,27.1182]
[1719237148876,7.7436,129.14,129.08,7.7471]
[1719237149048,7.7435,129.14,129.08,7.7471]
[1719237149251,0.8691485,129.15,129.09,52.7463]
[1719237149474,0.8691485,129.15,129.1,7.7457]
[1719237149674,0.8691485,129.15,129.09,45.0]
[1719237149971,0.8691485,129.15,129.1,7.7454]
[1719237150274,0.8691485,129.15,129.11,64.3629]
[1719237150461,0.8691485,129.15,129.14,7.7435]
[1719237150660,0.8691485,129.15,129.13,19.3589]
[1719237150856,0.8691485,129.15,129.11,45.0]
[1719237151054,0.8691485,129.15,129.11,52.7453]
[1719237151379,0.8691485,129.15,129.12,19.3612]
[1719237151674,0.8691485,129.15,129.11,52.745]
[1719237151879,0.8691485,129.15,129.11,45.0]
[1719237152053,0.8691485,129.15,129.09,207.746]
[1719237152253,0.8691485,129.15,129.1,45.0]
[1719237152453,7.7436,129.14,129.07,27.1156]
[1719237152649,0.8691485,129.15,129.1,7.7459]
[1719237153259,0.8691485,129.15,129.08,19.3668]
[1719237153575,0.8691485,129.15,129.11,100.0]
[1719237153784,0.8691485,129.15,129.1,7.7457]
[1719237153994,0.8691485,129.15,129.09,127.1118]
[1719237154154,7.7437,129.14,129.09,119.3658]
[1719237154464,8.6122485,129.15,129.09,119.3658]
[1719237154671,0.8691485,129.15,129.09,219.3658]
[1719237155375,0.8691485,129.15,129.09,227.1119]
[1719237155559,0.8691485,129.15,129.09,219.3658]
[1719237155765,0.8691485,129.15,129.1,52.7457]
[1719237156166,0.8691485,129.15,129.12,100.0]
[1719237156368,0.8691485,129.15,129.13,45.0]
[1719237156569,0.8691485,129.15,129.14,9.28859845]
[1719237156767,0.8691485,129.15,129.14,1.54509845]
[1719237156970,0.8691485,129.15,129.11,100.0]
[1719237157156,0.8691485,129.15,129.1,27.1093]
[1719237157356,0.8691485,129.15,129.11,45.0]
[1719237157669,0.8691485,129.15,129.09,100.0]
[1719237157877,8.1124485,129.15,129.09,107.7464]
[1719237158187,8.1124485,129.15,129.1,45.0]
[1719237158367,0.3691485,129.15,129.11,101.55284356]
[1719237158573,0.3691485,129.15,129.11,1.55284356]
[1719237158773,0.3691485,129.15,129.11,101.55284356]
[1719237159179,0.3691485,129.15,129.11,201.55284356]
[1719237159355,0.3691485,129.15,129.12,1.55272329]
[1719237160264,0.77447336,129.13,129.12,1.55272329]
[1719237161184,0.77447336,129.13,129.09,100.0]
[1719237161372,0.77447336,129.13,129.1,19.3646]
[1719237162077,0.77447336,129.13,129.11,100.0]
[1719237162265,0.77447336,129.13,129.12,107.7447]
[1719237162598,0.77447336,129.13,129.12,152.7447]
[1719237163161,0.77447336,129.13,129.12,153.0847]
[1719237163385,0.77447336,129.13,129.12,152.7447]
[1719237165962,0.77447336,129.13,129.12,153.0847]
[1719237168894,0.77782102,129.26,129.12,153.0847]
[1719237168895,7.7389,129.29,129.24,100.0]
[1719237169182,0.4190786,129.3,129.25,7.7368]
[1719237169390,0.4190786,129.3,129.26,100.0]
[1719237169572,0.4190786,129.3,129.27,107.7357]
[1719237169776,0.4190786,129.3,129.29,207.7345]
[1719237169976,0.8691485,129.41,129.35,100.0]
[1719237170165,0.8691485,129.41,129.35,200.0]
[1719237170367,0.8691485,129.41,129.38,100.0]
[1719237170571,0.8691485,129.53,129.4,100.0]
[1719237170782,19.3033,129.52,129.4,100.0]
[1719237170966,7.7247,129.46,129.38,100.0]
[1719237171163,7.7231,129.49,129.41,7.727]
[1719237171475,6.64653494,129.5,129.4,100.0]
[1719237171784,7.7256,129.44,129.38,100.0]
[1719237172082,7.7257,129.44,129.36,107.7301]
[1719237172282,19.3102,129.47,129.35,100.0]
[1719237172482,7.7268,129.42,129.35,107.7304]
[1719237172887,1.64653494,129.46,129.35,100.0]
[1719237173265,7.7268,129.42,129.35,100.0]
[1719237173965,1.64653494,129.46,129.35,107.7307]
[1719237174187,7.7297,129.38,129.29,107.7344]
[1719237174366,30.27,129.44,129.29,100.0]
[1719237174367,0.17,129.39,129.29,100.0]
[1719237174565,7.7306,129.36,129.29,100.0]
[1719237174790,7.7303,129.36,129.29,100.0]
[1719237175084,7.728,129.4,129.33,207.7321]
[1719237175292,6.25718551,129.51,129.35,200.0]
[1719237175293,20.0,129.46,129.35,200.0]
[1719237175494,1.64653494,129.45,129.35,200.0]
[1719237175805,7.7274,129.41,129.35,200.0]
[1719237176092,20.0,129.4,129.33,100.0]
[1719237176288,7.7286,129.39,129.33,100.0]
[1719237176496,7.7291,129.38,129.33,100.0]
[1719237176699,27.7284,129.4,129.33,100.0]
[1719237177188,20.0,129.4,129.32,100.0]
[1719237177500,0.34,129.39,129.31,100.0]
[1719237177990,7.7308,129.36,129.31,100.0]
[1719237178395,7.7298,129.37,129.31,100.0]
[1719237178593,20.0,129.36,129.31,100.0]
[1719237178778,27.7303,129.36,129.31,100.0]
[1719237179589,20.0,129.36,129.31,100.0]
[1719237179801,27.7306,129.36,129.31,100.0]
[1719237179978,19.3197,129.41,129.33,100.0]
[1719237180177,7.729,129.39,129.33,200.0]
[1719237180476,0.77321581,129.34,129.33,200.0]
[1719237181080,0.77321581,129.34,129.31,219.3322]
[1719237181281,0.77321581,129.34,129.31,100.0]
[1719237181791,0.77321581,129.34,129.29,100.0]
[1719237182001,0.77321581,129.34,129.3,100.0]
[1719237182289,0.77321581,129.34,129.29,107.7344]
[1719237182606,0.77321581,129.34,129.33,100.0]
[1719237183104,0.77321581,129.34,129.31,100.0]
[1719237183887,0.77321581,129.34,129.32,100.0]
[1719237184092,0.77321581,129.34,129.33,100.0]
[1719237184698,0.77321581,129.34,129.33,107.7321]
[1719237184874,0.77321581,129.34,129.32,100.0]
[1719237185074,8.50511581,129.34,129.31,100.0]
[1719237185471,0.77321581,129.34,129.31,200.0]
[1719237185676,0.77321581,129.34,129.33,200.0]
[1719237186296,0.77321581,129.34,129.33,207.7321]
[1719237187799,0.77321581,129.34,129.31,100.0]
[1719237187982,0.77321581,129.34,129.33,200.0]
[1719237188183,0.77321581,129.34,129.33,207.7321]
[1719237188592,0.77321581,129.34,129.33,107.7321]
[1719237188985,0.77321581,129.34,129.33,207.7321]
[1719237189505,0.77321581,129.34,129.33,207.9021]
[1719237190397,0.77321581,129.34,129.33,207.7321]
[1719237190702,0.77321581,129.34,129.33,207.9021]
[1719237190905,7.68071581,129.41,129.35,107.7306]
[1719237191091,7.728,129.4,129.34,27.0592]
[1719237192300,21.64653494,129.43,129.38,7.7291]
[1719237192501,7.7265,129.43,129.37,7.7296]
[1719237192682,20.0,129.42,129.35,119.3262]
[1719237192892,7.7277,129.41,129.35,127.057]
[1719237193196,7.7275,129.41,129.35,227.057]
[1719237193380,20.0,129.42,129.37,7.7297]
[1719237193586,27.7269,129.42,129.36,7.7302]
[1719237194193,20.0,129.42,129.37,127.0536]
[1719237194502,19.3141,129.44,129.35,107.7308]
[1719237194704,20.0,129.43,129.36,7.7302]
[1719237195002,27.7263,129.43,129.36,19.3256]
[1719237195199,7.7269,129.42,129.36,27.0557]
[1719237195395,20.0,129.41,129.31,100.0]
[1719237195594,7.7302,129.37,129.31,107.7328]
[1719237195799,20.0,129.41,129.32,100.0]
[1719237196104,7.7292,129.38,129.33,19.3303]
[1719237196409,21.30373494,129.42,129.33,27.0624]
[1719237196583,7.7291,129.39,129.33,27.0624]
[1719237196788,19.3201,129.4,129.31,107.7332]
[1719237196990,19.3201,129.4,129.31,100.0]
[1719237197184,20.96303494,129.43,129.34,7.731]
[1719237197385,7.728,129.4,129.35,100.0]
[1719237197792,27.7269,129.42,129.36,7.7302]
[1719237197990,27.7269,129.42,129.36,19.3255]
[1719237197991,20.0,129.42,129.36,19.3255]
[1719237198210,21.64653494,129.45,129.37,100.0]
[1719237198402,7.7259,129.44,129.38,27.0505]
[1719237198606,7.7274,129.41,129.35,27.0568]
[1719237198820,1.64653494,129.44,129.35,19.3261]
[1719237198990,7.7285,129.4,129.34,107.7315]
[1719237199191,7.728,129.4,129.34,127.0595]
[1719237199429,20.96073494,129.44,129.34,119.3282]
[1719237199726,7.7268,129.42,129.36,119.3255]
[1719237199898,20.0,129.45,129.36,119.3255]
[1719237200229,7.7264,129.43,129.37,107.7292]
[1719237200430,7.7264,129.43,129.38,7.7291]
[1719237200626,19.3104,129.47,129.39,107.7284]
[1719237200918,7.7241,129.47,129.41,107.7272]
[1719237201094,7.724,129.47,129.41,107.7272]
[1719237201425,7.7235,129.48,129.42,7.7266]
[1719237201586,5.0,129.5,129.43,200.0]
[1719237201792,12.722,129.5,129.44,7.725]
[1719237202107,12.722,129.5,129.42,100.0]
[1719237202108,5.0,129.5,129.42,100.0]
[1719237202420,7.7245,129.46,129.42,100.0]
[1719237202591,7.7239,129.47,129.42,100.0]
[1719237202992,7.7232,129.48,129.42,7.7265]
[1719237203287,5.0,129.5,129.47,7.7237]
[1719237203492,5.0,129.5,129.47,119.3084]
[1719237203723,5.0,129.5,129.47,19.3084]
[1719237204016,5.0,129.5,129.47,100.0]
[1719237204221,5.0,129.5,129.48,7.723]
[1719237204408,5.0,129.5,129.47,100.0]
[1719237204607,5.0,129.5,129.47,107.7237]
[1719237204915,5.0,129.5,129.47,100.0]
[1719237205122,5.0,129.5,129.49,107.7226]
[1719237205627,5.0,129.5,129.49,207.7226]
[1719237205916,5.0,129.5,129.49,100.0]
[1719237206123,5.0,129.5,129.49,207.7226]
[1719237206609,5.0,129.5,129.49,107.7226]
[1719237206810,5.0,129.5,129.47,100.0]
[1719237207013,5.0,129.5,129.45,107.7247]
[1719237207204,5.0,129.5,129.45,100.0]
[1719237207399,5.0,129.5,129.46,100.0]
[1719237207601,5.0,129.5,129.47,107.7233]
[1719237207817,5.0,129.5,129.47,100.0]
[1719237208393,5.0,129.5,129.48,100.0]
[1719237208806,5.0,129.5,129.47,100.0]
[1719237209217,5.0,129.5,129.45,100.0]
[1719237209409,5.0,129.5,129.46,1.02282115]
[1719237209992,7.7232,129.48,129.46,1.02282115]
[1719237210190,5.0,129.5,129.45,200.0]
[1719237210414,5.0,129.5,129.45,100.0]
[1719237210807,7.723,129.49,129.45,100.0]
[1719237211030,7.7255,129.44,129.43,100.0]
[1719237211212,7.7251,129.45,129.4,100.0]
[1719237211412,7.7262,129.43,129.4,100.0]
[1719237211605,7.7256,129.44,129.4,100.0]
[1719237211833,7.7262,129.43,129.4,100.0]
[1719237212120,19.3129,129.45,129.36,100.0]
[1719237212303,19.3129,129.45,129.38,100.0]
[1719237212504,19.3129,129.45,129.36,100.0]
[1719237212821,1.64653494,129.47,129.36,100.0]
[1719237213120,7.7286,129.39,129.34,100.0]
[1719237213321,7.7281,129.4,129.36,100.0]
[1719237213519,0.34,129.46,129.34,27.059]
[1719237213520,7.7287,129.39,129.34,100.0]
[1719237213697,7.7292,129.38,129.35,1.03502339]
[1719237213902,7.7293,129.38,129.35,1.03502339]
[1719237214126,59.58673494,129.45,129.34,100.0]
[1719237214306,39.4851,129.44,129.34,100.0]
[1719237214512,7.728,129.4,129.34,100.0]
[1719237214717,19.3181,129.42,129.32,100.0]
[1719237215032,20.34,129.41,129.32,100.0]
[1719237215226,7.7304,129.36,129.32,100.0]
[1719237215425,7.7299,129.37,129.3,127.0686]
[1719237215738,7.7287,129.39,129.33,100.0]
[1719237215909,20.0,129.38,129.31,119.3326]
[1719237216106,20.17,129.41,129.31,100.0]
[1719237216107,1.81653494,129.4,129.31,100.0]
[1719237216412,0.17,129.39,129.31,100.0]
[1719237216612,70.73173494,129.39,129.25,119.3414]
[1719237216808,70.73173494,129.39,129.25,100.0]
[1719237216809,7.7334,129.31,129.25,100.0]
[1719237217007,1.64653494,129.35,129.25,100.0]
[1719237217197,20.0,129.35,129.27,107.7356]
[1719237217403,7.7313,129.35,129.28,7.7347]
[1719237217927,7.7315,129.34,129.27,207.7355]
[1719237218114,7.7323,129.33,129.27,200.0]
[1719237218427,20.97163494,129.37,129.25,107.7367]
[1719237218732,20.34,129.36,129.25,119.3411]
[1719237218901,1.64653494,129.35,129.25,119.3411]
[1719237219303,0.17,129.34,129.25,100.0]
[1719237219613,27.7317,129.34,129.25,200.0]
[1719237219813,7.7317,129.34,129.26,7.7362]
[1719237220129,7.7323,129.33,129.25,107.7367]
[1719237220313,7.7316,129.34,129.26,7.7362]
[1719237221133,1.64653494,129.35,129.25,100.0]
[1719237221434,0.34,129.34,129.25,100.0]
[1719237221634,0.34,129.34,129.23,100.0]
[1719237221635,19.3331,129.32,129.23,100.0]
[1719237221841,7.7341,129.3,129.23,100.0]
[1719237222009,27.7335,129.31,129.23,107.7376]
[1719237222424,27.7335,129.31,129.23,100.0]
[1719237222724,20.0,129.31,129.23,107.7379]
[1719237223303,20.0,129.31,129.23,107.7381]
[1719237223625,29.38033494,129.31,129.22,19.3456]
[1719237223838,1.98653494,129.34,129.23,100.0]
[1719237224007,48.6452,129.39,129.26,7.7358]
[1719237224008,7.7313,129.35,129.26,7.7358]
[1719237224207,7.7317,129.34,129.25,207.7368]
[1719237224631,1.64653494,129.37,129.29,7.734]
[1719237224827,25.52246576,129.41,129.28,119.3364]
[1719237224828,1.64653494,129.4,129.28,119.3364]
[1719237225207,1.64653494,129.4,129.29,100.0]
[1719237225715,7.731,129.35,129.26,100.0]
[1719237225930,7.731,129.35,129.26,107.7359]
[1719237225931,7.7311,129.35,129.26,107.7359]
[1719237226231,1.64653494,129.34,129.24,100.0]
[1719237226433,7.7327,129.32,129.24,100.0]
[1719237226628,1.64653494,129.37,129.24,100.0]
[1719237226935,7.7316,129.34,129.25,100.0]
[1719237227114,20.17,129.33,129.24,127.0808]
[1719237227424,20.17,129.33,129.25,7.7368]
[1719237227611,20.0,129.33,129.26,100.0]
[1719237228215,1.64653494,129.39,129.26,107.7358]
[1719237228419,7.7301,129.37,129.26,107.7358]
[1719237228612,21.64653494,129.36,129.26,100.0]
[1719237228828,20.0,129.36,129.28,100.0]
[1719237229014,20.0,129.36,129.28,107.7348]
[1719237229215,20.0,129.36,129.28,100.0]
[1719237229421,7.7305,129.36,129.26,127.0761]
[1719237229620,1.64653494,129.38,129.28,100.0]
[1719237229821,1.64653494,129.38,129.28,107.7347]
[1719237230054,21.64653494,129.38,129.28,107.7347]
[1719237230231,7.7307,129.36,129.26,119.3403]
[1719237230418,21.98653494,129.35,129.24,100.0]
[1719237230619,7.9016,129.34,129.24,100.0]
[1719237230840,1.81653494,129.33,129.24,107.7375]
[1719237231137,0.17,129.33,129.24,100.0]
[1719237231351,1.81653494,129.34,129.24,100.0]
[1719237231641,0.34,129.33,129.24,100.0]
[1719237231822,0.34,129.33,129.24,107.7373]
[1719237232025,7.9015,129.34,129.24,100.0]
[1719237232213,7.7322,129.33,129.24,100.0]
[1719237232419,0.17,129.32,129.22,107.7386]
[1719237232625,7.7334,129.31,129.2,119.3485]
[1719237232841,0.17,129.3,129.21,7.739]
[1719237233039,0.17,129.3,129.2,127.0883]
[1719237233210,0.17,129.3,129.2,119.3485]
[1719237233407,7.9037,129.31,129.2,119.3485]
[1719237233612,7.7347,129.29,129.2,100.0]
[1719237233813,0.34,129.28,129.2,100.0]
[1719237234113,0.17,129.28,129.2,107.7395]
[1719237234313,20.17,129.29,129.2,100.0]
[1719237234635,0.17,129.28,129.2,100.0]
[1719237235129,0.17,129.28,129.2,107.7397]
[1719237235320,20.17,129.28,129.2,100.0]
[1719237235525,0.17,129.28,129.19,27.0906]
[1719237235769,7.7365,129.26,129.15,496.0428]
[1719237235914,20.0,129.25,129.15,100.0]
[1719237236232,0.34,129.27,129.16,19.3555]
[1719237236233,7.7363,129.26,129.16,19.3555]
[1719237236418,20.34,129.25,129.16,19.3555]
[1719237236624,20.17,129.25,129.16,19.3555]
[1719237236823,0.17,129.25,129.16,19.3555]
[1719237237019,28.0769,129.25,129.15,7.7424]
[1719237237229,0.17,129.24,129.14,107.7434]
[1719237237615,7.9076,129.24,129.14,7.7434]
[1719237237811,20.0,129.25,129.15,119.357]
[1719237238016,20.0,129.25,129.17,7.7412]
[1719237238216,20.0,129.25,129.15,119.357]
[1719237238634,0.34,129.24,129.17,7.7416]
[1719237238840,0.17,129.24,129.13,100.0]
[1719237239031,0.17,129.24,129.12,119.361]
[1719237239223,0.17,129.24,129.13,7.744]
[1719237239224,7.9079,129.24,129.13,7.744]
[1719237239430,20.17,129.23,129.13,7.744]
[1719237239632,0.17,129.22,129.13,7.744]
[1719237240239,0.77441339,129.14,129.13,7.744]
[1719237241017,0.77441339,129.14,129.12,19.361]
[1719237241219,0.77441339,129.14,129.12,27.1055]
[1719237241425,0.77441339,129.14,129.13,7.7441]
[1719237242347,0.77441339,129.14,129.12,27.1056]
[1719237242535,0.77441339,129.14,129.1,100.0]
[1719237242743,0.77441339,129.14,129.07,107.7472]
[1719237242933,0.77441339,129.14,129.08,7.7468]
[1719237243140,0.77441339,129.14,129.08,27.1145]
[1719237244046,0.77441339,129.14,129.09,7.7459]
[1719237244244,0.77441339,129.14,129.1,7.7457]
[1719237244552,0.77441339,129.14,129.1,7.7458]
[1719237244750,0.77441339,129.14,129.08,27.1144]
[1719237244964,0.77441339,129.14,129.08,19.3677]
[1719237245453,0.77441339,129.14,129.06,100.0]
[1719237245644,0.77441339,129.14,129.05,7.7486]
[1719237245855,0.77441339,129.14,129.04,219.3729]
[1719237245856,0.77441339,129.14,129.06,100.0]
[1719237246051,0.77441339,129.14,129.09,107.7465]
[1719237246262,0.77441339,129.14,129.11,200.0]
[1719237246436,0.77441339,129.14,129.13,7.7441]
[1719237246764,0.77441339,129.14,129.12,19.3609]
[1719237246765,0.77441339,129.14,129.12,27.1055]
[1719237246933,0.77441339,129.14,129.04,79.0149]
[1719237246934,0.77441339,129.14,129.09,19.3652]
[1719237247281,0.77441339,129.14,129.11,19.3629]
[1719237247742,0.77441339,129.14,129.08,200.0]
[1719237247946,0.77441339,129.14,129.1,19.3645]
[1719237248129,0.77441339,129.14,129.08,7.7471]
[1719237248335,0.77441339,129.14,129.07,27.1155]
[1719237248747,0.17,129.13,129.04,227.122]
[1719237248932,0.17,129.13,129.05,7.7487]
[1719237249257,0.34,129.13,129.04,27.1218]
[1719237249431,0.34,129.13,129.04,19.3729]
[1719237249635,8.0841,129.13,129.03,7.7499]
[1719237249856,20.0,129.12,129.03,7.7499]
[1719237250038,0.17,129.11,129.05,7.7487]
[1719237250235,20.0,129.12,129.05,7.7489]
[1719237250438,0.34,129.13,129.04,100.0]
[1719237250645,0.34,129.13,129.05,27.1204]
[1719237251227,0.77441339,129.14,129.06,100.0]
[1719237251433,0.77441339,129.14,129.07,19.369]
[1719237251690,0.77441339,129.14,129.07,27.1161]
[1719237252165,0.77441339,129.14,129.06,7.7482]
[1719237252464,0.77441339,129.14,129.06,19.3705]
[1719237252664,0.17,129.13,129.03,119.374]
[1719237252843,0.34,129.13,129.04,7.7493]
[1719237253170,0.34,129.13,129.06,7.7481]
[1719237253328,0.77441339,129.14,129.08,100.0]
[1719237253531,0.77441339,129.14,129.13,7.7441]
[1719237253835,0.77441339,129.14,129.11,27.1075]
[1719237254154,0.77441339,129.14,129.12,7.7444]
[1719237254670,0.77441339,129.14,129.13,7.7441]
[1719237254841,0.77441339,129.14,129.13,207.7441]
[1719237255353,50.333384,129.34,129.19,7.7403]
[1719237255540,50.333384,129.34,129.13,20.17]
[1719237255541,19.3327,129.32,129.16,100.0]
[1719237255865,19.3327,129.32,129.17,100.0]
[1719237256076,7.7346,129.29,129.18,7.7409]
[1719237256432,7.7352,129.28,129.17,27.0952]
[1719237257344,7.7363,129.26,129.14,119.3585]
[1719237257556,19.3363,129.3,129.14,119.3585]
[1719237257739,7.7373,129.25,129.14,127.1017]
[1719237258252,0.34,129.24,129.15,7.7428]
[1719237258450,18.0894077,129.33,129.2,7.7399]
[1719237258655,20.0,129.32,129.18,19.3522]
[1719237258964,7.7346,129.29,129.18,27.0929]
[1719237259144,20.0,129.28,129.19,207.7405]
[1719237259469,7.7338,129.31,129.2,7.7397]
[1719237259645,27.7328,129.32,129.21,7.7391]
[1719237259845,20.0,129.32,129.23,7.7381]
[1719237260072,20.0,129.34,129.24,7.7373]
[1719237260364,0.77375426,129.25,129.24,27.0799]
[1719237262466,0.77375426,129.25,129.21,138.6945]
[1719237262467,0.77375426,129.25,129.21,219.3474]
[1719237262659,0.77375426,129.25,129.21,119.3474]
[1719237262844,0.77375426,129.25,129.21,100.0]
[1719237263041,0.77375426,129.25,129.24,107.7375]
[1719237263242,0.77375426,129.25,129.23,27.0828]
[1719237263953,0.77375426,129.25,129.24,107.7375]
[1719237265046,0.77375426,129.25,129.24,7.7375]
[1719237265246,0.77375426,129.25,129.23,27.0828]
[1719237265463,0.77375426,129.25,129.23,19.3449]
[1719237265840,0.77375426,129.25,129.23,27.0829]
[1719237266040,0.77375426,129.25,129.24,7.7375]
[1719237266353,0.77375426,129.25,129.24,107.7375]
[1719237267041,0.77375426,129.25,129.24,107.9075]
[1719237267656,5.426e-05,129.25,129.24,158.2975]
[1719237267846,29.3127,129.45,129.24,158.2975]
[1719237267847,10.0,129.45,129.31,119.3327]
[1719237268058,49.529,129.48,129.33,107.7317]
[1719237268059,7.726,129.44,129.33,107.7317]
[1719237268253,7.726,129.44,129.34,7.7315]
[1719237268447,19.3116,129.46,129.31,100.0]
[1719237268649,19.3145,129.44,129.27,100.0]
[1719237268853,10.0,129.43,129.27,119.3386]
[1719237269075,7.7286,129.39,129.27,119.3386]
[1719237269255,19.3174,129.42,129.29,7.734]
[1719237269558,19.3174,129.42,129.27,127.0738]
[1719237269559,7.7293,129.38,129.27,127.0738]
[1719237269761,45.17,129.37,129.24,27.0806]
[1719237269964,20.0,129.36,129.24,19.3434]
[1719237270164,0.34,129.35,129.27,100.0]
[1719237270466,0.34,129.35,129.23,100.0]
[1719237270467,7.7332,129.32,129.23,100.0]
[1719237270676,20.34,129.31,129.22,7.7383]
[1719237270854,0.17,129.32,129.24,19.3435]
[1719237271047,20.17,129.34,129.26,7.7358]
[1719237271361,0.17,129.33,129.25,207.7367]
[1719237271669,20.0,129.34,129.27,107.7355]
[1719237271844,20.0,129.39,129.27,107.7355]
[1719237272152,0.17,129.38,129.25,107.7365]
[1719237272657,7.7305,129.36,129.25,127.0788]
[1719237272858,38.6237,129.46,129.29,100.0]
[1719237273076,10.0,129.45,129.31,119.333]
[1719237273247,10.0,129.45,129.33,100.0]
[1719237273450,7.7266,129.43,129.32,7.7326]
[1719237273769,7.7269,129.42,129.31,127.0661]
[1719237273950,7.7269,129.42,129.31,119.333]
[1719237274150,7.7269,129.42,129.31,227.0661]
[1719237274567,19.3142,129.44,129.31,19.333]
[1719237274777,7.7275,129.41,129.31,27.0662]
[1719237274994,7.7254,129.45,129.35,7.7309]
[1719237275162,7.7245,129.46,129.36,100.0]
[1719237275465,30.96621,129.48,129.37,7.7296]
[1719237275776,13.08132017,129.5,129.36,100.0]
[1719237275958,7.7251,129.45,129.35,127.0579]
[1719237276148,7.7248,129.46,129.35,27.0579]
[1719237276350,5.0,129.5,129.37,100.0]
[1719237276662,7.7243,129.47,129.35,107.7308]
[1719237276866,24.3055,129.5,129.35,107.7309]
[1719237277060,11.2395382,129.5,129.34,19.328]
[1719237277265,7.725,129.45,129.34,7.7314]
[1719237277558,7.7257,129.44,129.33,127.0619]
[1719237277760,0.34,129.43,129.34,7.7314]
[1719237278059,0.34,129.44,129.31,100.0]
[1719237278293,7.8969,129.42,129.31,107.7329]
[1719237278465,0.17,129.44,129.3,107.7338]
[1719237278466,27.8974,129.41,129.3,107.7338]
[1719237278658,0.17,129.4,129.32,7.7326]
[1719237278867,0.17,129.4,129.3,7.7338]
[1719237279060,0.17,129.4,129.31,7.7332]
[1719237279277,20.17,129.4,129.31,107.7332]
[1719237279587,0.17,129.39,129.31,107.7332]
[1719237279751,0.17,129.39,129.31,100.0]
[1719237279951,7.8985,129.39,129.29,100.0]
[1719237280151,20.0,129.41,129.32,107.7323]
[1719237280372,0.7732756,129.33,129.32,107.7323]
[1719237280977,0.7732756,129.33,129.32,100.0]
[1719237281179,0.7732756,129.33,129.32,107.7327]
[1719237282773,0.7732756,129.33,129.32,207.7327]
[1719237282971,0.7732756,129.33,129.32,107.7327]
[1719237283574,0.7732756,129.33,129.32,100.0]
[1719237283754,0.7732756,129.33,129.32,7.7327]